bitfinex/quotes_SOLUSD_20250717
["timestamp","ask_amount","ask_price","bid_price","bid_amount"]
[1752783002372,6.52886453,171.56,171.55,1e-08]
[1752783002574,22.37626959,171.56,171.55,1e-08]
[1752783003894,187.46095356,171.56,171.55,1e-08]
[1752783004083,187.46095356,171.56,171.48,0.06]
[1752783004084,26.0,171.52,171.48,0.06]
[1752783004389,149.0,171.51,171.48,0.06]
[1752783004578,15.84740506,171.51,171.48,0.06]
[1752783004773,15.84740506,171.51,171.49,0.7]
[1752783004979,0.7,171.58,171.5,16.54740506]
[1752783005193,0.7,171.58,171.53,15.84740506]
[1752783005194,15.84740506,171.58,171.53,15.84740506]
[1752783005370,15.84740506,171.58,171.51,0.7]
[1752783005371,0.7,171.64,171.57,15.84740506]
[1752783005693,0.7,171.64,171.55,0.7]
[1752783005694,15.84740506,171.61,171.55,0.7]
[1752783005877,15.84740506,171.56,171.52,1.6141]
[1752783006077,15.84740506,171.54,171.52,1.6141]
[1752783006394,31.82776264,171.6,171.53,0.7]
[1752783006563,15.84740506,171.57,171.53,0.7]
[1752783007092,31.82776264,171.6,171.54,0.7]
[1752783007296,31.82776264,171.6,171.52,23.29171143]
[1752783007297,15.84740506,171.56,171.52,1.6141]
[1752783007593,31.82756911,171.6,171.52,48.48740506]
[1752783007781,15.84740506,171.59,171.54,15.84740506]
[1752783007965,5.82682671,171.62,171.55,0.7]
[1752783008170,15.84740506,171.57,171.52,49.18740506]
[1752783008371,15.84740506,171.58,171.53,16.54740506]
[1752783008706,31.82682671,171.62,171.54,0.7]
[1752783008869,15.84740506,171.6,171.55,15.84740506]
[1752783009070,5.82652011,171.63,171.56,16.54740506]
[1752783009282,15.84740506,171.62,171.57,48.60740506]
[1752783009484,21.67428432,171.62,171.57,48.60740506]
[1752783009679,15.84740506,171.61,171.57,33.46]
[1752783009969,15.84740506,171.58,171.53,49.30740506]
[1752783010379,0.7,171.6,171.55,15.84740506]
[1752783010691,15.84740506,171.6,171.55,15.84740506]
[1752783011000,15.84740506,171.58,171.53,32.76]
[1752783011168,15.84740506,171.58,171.53,49.30740506]
[1752783011371,21.67575907,171.58,171.53,49.30740506]
[1752783011599,21.67575907,171.58,171.53,32.76]
[1752783011800,15.84740506,171.58,171.54,0.7]
[1752783012006,15.84740506,171.6,171.55,16.54740506]
[1752783012170,15.84740506,171.61,171.56,0.7]
[1752783012371,15.84740506,171.61,171.57,0.7]
[1752783012580,21.67461638,171.61,171.57,0.7]
[1752783012872,47.67429273,171.62,171.58,0.7]
[1752783013088,15.84740506,171.61,171.56,15.84740506]
[1752783013391,21.67489155,171.61,171.56,16.04740506]
[1752783013582,21.67489155,171.61,171.56,16.54740506]
[1752783013896,15.84740506,171.6,171.54,21.67677989]
[1752783014193,15.84740506,171.61,171.56,15.84740506]
[1752783014384,15.84740506,171.59,171.54,16.54740506]
[1752783014795,15.84740506,171.58,171.53,32.76]
[1752783014990,46.39396307,171.62,171.53,38.58979821]
[1752783015299,15.84740506,171.59,171.54,16.54740506]
[1752783015598,21.67527058,171.59,171.54,16.54740506]
[1752783015794,15.84740506,171.58,171.54,0.7]
[1752783015997,15.84740506,171.58,171.53,48.60740506]
[1752783016308,15.84740506,171.58,171.53,49.30740506]
[1752783016511,15.84740506,171.59,171.54,0.7]
[1752783016680,15.84740506,171.59,171.54,16.54740506]
[1752783016996,15.84740506,171.59,171.54,11.16424451]
[1752783016997,10.46424451,171.59,171.54,11.16424451]
[1752783017178,10.46424451,171.61,171.55,0.7]
[1752783017386,36.46424451,171.62,171.57,10.46424451]
[1752783017580,36.46424451,171.62,171.58,39.0881851]
[1752783018502,10.46424451,171.62,171.58,33.26]
[1752783018674,0.03,171.65,171.58,33.26]
[1752783018675,0.03,171.65,171.6,10.46424451]
[1752783018880,0.03,171.65,171.59,0.7]
[1752783019080,0.03,171.65,171.61,10.46424451]
[1752783019275,0.03,171.65,171.62,32.52]
[1752783019782,10.46424451,171.63,171.57,32.52]
[1752783020095,0.7,171.62,171.57,32.52]
[1752783020396,10.46424451,171.6,171.57,32.52]
[1752783020783,0.7,171.62,171.57,32.52]
[1752783020984,10.46424451,171.6,171.57,32.52]
[1752783021185,10.46424451,171.59,171.57,32.52]
[1752783021379,0.7,171.62,171.57,32.52]
[1752783021696,10.46424451,171.64,171.59,10.46424451]
[1752783021901,0.03,171.65,171.62,10.46424451]
[1752783022075,0.03,171.65,171.63,42.96424451]
[1752783022274,16.32013827,171.65,171.63,32.5]
[1752783023699,10.49424451,171.65,171.63,32.5]
[1752783023892,10.46424451,171.64,171.63,32.5]
[1752783024092,10.46424451,171.64,171.6,32.48]
[1752783024305,10.46424451,171.61,171.57,0.7]
[1752783024487,10.46424451,171.61,171.58,0.7]
[1752783024797,36.46424451,171.62,171.58,0.7]
[1752783025003,10.46424451,171.61,171.58,0.7]
[1752783025176,26.0,171.62,171.56,32.52]
[1752783025380,10.46424451,171.6,171.56,38.34881923]
[1752783025609,26.0,171.62,171.57,0.7]
[1752783025798,10.46424451,171.6,171.57,0.7]
[1752783026102,31.82691034,171.62,171.58,0.7]
[1752783026302,0.03,171.65,171.59,11.16424451]
[1752783026606,0.03,171.65,171.61,10.46424451]
[1752783026909,0.03,171.65,171.64,10.46424451]
[1752783027205,0.2,171.74,171.72,10.46424451]
[1752783027393,30.0,171.73,171.72,42.88424451]
[1752783027593,30.0,171.73,171.72,43.58424451]
[1752783027992,0.2,171.74,171.72,43.58424451]
[1752783028195,10.66424451,171.74,171.72,32.4]
[1752783028392,0.2,171.74,171.73,10.46424451]
[1752783028598,0.2,171.74,171.73,11.16424451]
[1752783029290,0.2,171.74,171.73,11.74655394]
[1752783029496,0.03,171.75,171.73,36.67493791]
[1752783029785,0.03,171.75,171.74,11.16424451]
[1752783029996,0.03,171.75,171.74,16.98699983]
[1752783030198,0.03,171.75,171.74,49.34699983]
[1752783030610,1e-08,171.75,171.74,66.1316838]
[1752783030813,0.03,171.82,171.75,16.78468397]
[1752783031018,0.03,171.82,171.79,15.94150762]
[1752783031215,0.03,171.82,171.79,48.30150762]
[1752783031407,0.03,171.82,171.81,15.94150762]
[1752783031893,0.03,171.82,171.81,22.4618906]
[1752783035625,0.2,171.86,171.82,18.40318397]
[1752783035816,0.2,171.86,171.85,15.94150762]
[1752783035997,0.2,171.86,171.85,21.76053584]
[1752783036197,0.2,171.86,171.85,22.47053584]
[1752783036413,1e-08,171.86,171.85,39.25521981]
[1752783036712,1e-08,171.86,171.85,22.47053584]
[1752783037791,1e-08,171.86,171.84,5.81936649]
[1752783037999,15.94150763,171.86,171.85,32.26]
[1752783038211,15.94150763,171.86,171.84,32.26]
[1752783038515,1e-08,171.86,171.84,32.26]
[1752783038713,15.94150763,171.86,171.84,32.26]
[1752783039501,1e-08,171.86,171.84,32.26]
[1752783040625,16.63150763,171.86,171.84,32.26]
[1752783040814,16.63150762,171.85,171.84,32.26]
[1752783041006,0.69,171.85,171.83,32.26]
[1752783041507,16.63150762,171.84,171.83,32.26]
[1752783041814,15.94150762,171.85,171.83,32.26]
[1752783042017,1e-08,171.86,171.83,32.26]
[1752783042618,0.69000001,171.86,171.83,32.26]
[1752783042999,0.69,171.85,171.79,21.7624928]
[1752783043193,1e-08,171.86,171.82,15.94150762]
[1752783043399,1e-08,171.86,171.83,32.26]
[1752783043599,1e-08,171.86,171.83,32.97]
[1752783043795,1e-08,171.86,171.83,32.26]
[1752783044115,1e-08,171.86,171.84,15.94150762]
[1752783044313,1e-08,171.86,171.85,15.94150762]
[1752783044517,16.15203188,171.97,171.85,15.94150762]
[1752783044518,0.69,171.95,171.85,17.23341044]
[1752783044737,5.815056,171.97,171.92,15.94150762]
[1752783044738,15.94150762,171.97,171.92,15.94150762]
[1752783045036,16.63150762,171.97,171.93,32.26]
[1752783045532,32.50433875,171.99,171.93,32.26]
[1752783045722,15.94150762,171.98,171.93,48.20150762]
[1752783045926,22.44584637,171.99,171.94,15.94150762]
[1752783046109,16.63150762,171.99,171.94,21.75727891]
[1752783046310,16.63150762,172.02,171.96,15.94150762]
[1752783046537,16.63150762,172.02,171.95,0.71]
[1752783046538,15.94150762,172.03,171.98,15.94150762]
[1752783046705,15.94150762,172.03,171.97,32.26]
[1752783046706,6.5023003,172.05,171.99,15.94150762]
[1752783046910,15.94150762,172.04,172.0,32.26]
[1752783047138,6.5023003,172.05,172.0,32.26]
[1752783047347,0.69,172.05,172.0,32.26]
[1752783047637,15.94150762,172.06,172.01,15.94150762]
[1752783047868,0.69,172.08,172.03,15.94150762]
[1752783048145,15.94150762,172.09,172.04,48.20150762]
[1752783048310,0.03,172.1,172.05,16.65150762]
[1752783048643,15.97150762,172.1,172.05,16.65150762]
[1752783048817,21.78219305,172.1,172.05,16.65150762]
[1752783049010,0.03,172.1,172.07,15.94150762]
[1752783049211,0.03,172.1,172.08,48.91150762]
[1752783049411,0.03,172.1,172.09,15.94150762]
[1752783049716,0.03,172.1,172.09,32.24]
[1752783050237,0.03,172.1,172.09,48.89150762]
[1752783050534,0.03,172.1,172.09,54.70242051]
[1752783050724,0.03,172.1,172.09,48.89150762]
[1752783050927,0.03,172.1,172.06,0.71]
[1752783051230,15.97150762,172.1,172.07,32.24]
[1752783051528,0.69,172.09,172.07,32.24]
[1752783051739,0.03,172.1,172.07,32.24]
[1752783051941,0.03,172.1,172.08,15.94150762]
[1752783052126,0.03,172.1,172.07,32.95]
[1752783052331,0.03,172.1,172.08,15.94150762]
[1752783052528,0.03,172.1,172.07,32.24]
[1752783052836,0.03,172.1,172.08,15.94150762]
[1752783053218,0.03,172.1,172.09,0.71]
[1752783053424,0.03,172.1,172.09,16.65150762]
[1752783053625,0.03,172.1,172.09,0.71]
[1752783053839,0.03,172.1,172.08,15.94150762]
[1752783054027,0.03,172.1,172.09,16.65150762]
[1752783054232,0.03,172.1,172.09,22.46242051]
[1752783054747,5.80727197,172.2,172.1,15.94150762]
[1752783054942,5.80727197,172.2,172.14,15.94150762]
[1752783054943,15.94150762,172.19,172.14,15.94150762]
[1752783055122,0.69,172.19,172.15,32.22]
[1752783055325,15.94150762,172.19,172.16,32.22]
[1752783055641,15.94150762,172.18,172.16,32.22]
[1752783055941,42.63150762,172.17,172.09,15.94150762]
[1752783056137,42.63150762,172.17,172.08,0.71]
[1752783056138,15.94150762,172.15,172.1,48.16150762]
[1752783056339,21.75071374,172.15,172.1,48.16150762]
[1752783056654,16.63150762,172.14,172.1,32.22]
[1752783056946,15.94150762,172.15,172.1,48.87150762]
[1752783057121,21.75013264,172.16,172.11,15.94150762]
[1752783057321,15.94150762,172.14,172.1,32.22]
[1752783057546,16.63150762,172.13,172.1,32.22]
[1752783057725,0.69,172.12,172.1,32.22]
[1752783057923,15.94150762,172.13,172.1,32.22]
[1752783058353,0.69,172.15,172.1,32.22]
[1752783058644,6.49686371,172.21,172.14,15.94150762]
[1752783058836,0.69,172.24,172.18,15.94150762]
[1752783059038,5.80524976,172.26,172.19,48.16150762]
[1752783059344,0.69,172.27,172.21,15.94150762]
[1752783059543,21.74645515,172.27,172.21,15.94150762]
[1752783059851,0.2,172.28,172.21,16.65150762]
[1752783060049,15.94150762,172.26,172.21,0.71]
[1752783060238,16.66150762,172.22,172.16,15.94150762]
[1752783060434,16.66150762,172.22,172.15,2.3502]
[1752783060435,6.52658889,172.22,172.15,0.71]
[1752783060646,0.69,172.21,172.16,32.2]
[1752783060946,15.94150762,172.17,172.11,16.65150762]
[1752783061149,15.94150762,172.15,172.12,32.2]
[1752783061653,15.94150762,172.17,172.13,0.71]
[1752783061839,15.94150762,172.15,172.12,32.2]
[1752783062034,15.94150762,172.13,172.12,32.2]
[1752783062631,15.94150762,172.15,172.12,32.2]
[1752783063149,6.47686371,172.21,172.13,0.69]
[1752783063353,15.94150762,172.18,172.13,16.63150762]
[1752783063526,0.67,172.17,172.13,32.2]
[1752783063733,5.80686371,172.21,172.13,32.2]
[1752783063734,0.67,172.16,172.13,32.2]
[1752783063953,15.94150762,172.14,172.13,32.2]
[1752783064142,16.61150762,172.14,172.13,32.2]
[1752783064336,5.80956253,172.13,172.07,0.69]
[1752783064536,15.94150762,172.11,172.08,32.2]
[1752783065138,0.67,172.14,172.08,32.2]
[1752783065336,15.94150762,172.12,172.08,32.89]
[1752783065732,15.94150762,172.12,172.08,32.2]
[1752783065932,15.94150762,172.14,172.09,16.63150762]
[1752783066128,5.80821281,172.17,172.1,0.69]
[1752783066458,15.94150762,172.18,172.13,21.75107015]
[1752783066644,15.94150762,172.17,172.14,32.2]
[1752783067553,15.94150762,172.15,172.14,32.2]
[1752783067739,15.97150762,172.15,172.14,32.2]
[1752783067946,15.97150762,172.15,172.11,0.06]
[1752783067947,16.64150762,172.15,172.11,32.26]
[1752783068254,15.94150762,172.13,172.11,32.26]
[1752783068556,15.94150762,172.14,172.11,32.26]
[1752783068754,15.94150762,172.13,172.11,32.26]
[1752783069255,15.94150762,172.14,172.11,38.76018744]
[1752783069447,15.94150762,172.14,172.11,32.26]
[1752783069641,15.94150762,172.12,172.11,32.26]
[1752783069847,16.61150762,172.12,172.11,32.26]
[1752783070452,15.94150762,172.12,172.11,32.26]
[1752783070850,0.03,172.15,172.11,32.26]
[1752783071154,15.94150762,172.13,172.11,32.26]
[1752783071339,15.94150762,172.14,172.11,38.0701467]
[1752783071540,15.97150762,172.15,172.11,54.70165432]
[1752783071756,0.03,172.15,172.11,54.01165432]
[1752783071948,0.03,172.15,172.12,0.69]
[1752783072149,0.03,172.15,172.12,16.63150762]
[1752783072350,0.03,172.15,172.14,15.94150762]
[1752783072555,0.03,172.15,172.14,53.93073266]
[1752783072739,0.03,172.15,172.14,54.62073266]
[1752783073261,0.03,172.15,172.14,32.18]
[1752783073563,0.03,172.15,172.14,37.98922504]
[1752783073756,0.03,172.15,172.14,54.62073266]
[1752783074163,0.03,172.15,172.14,38.67922504]
[1752783074356,0.03,172.15,172.14,54.62073266]
[1752783074544,0.03,172.15,172.14,38.67922504]
[1752783075455,0.03,172.15,172.14,32.18]
[1752783076158,0.03,172.15,172.14,37.98922504]
[1752783076545,0.03,172.15,172.14,32.18]
[1752783077462,0.03,172.15,172.14,37.98922504]
[1752783078257,0.03,172.15,172.14,38.67922504]
[1752783078460,0.03,172.15,172.14,37.98922504]
[1752783079051,0.03,172.15,172.14,32.18]
[1752783079253,0.03,172.15,172.14,37.98922504]
[1752783079472,0.03,172.15,172.14,38.67922504]
[1752783079972,0.03,172.15,172.14,37.98922504]
[1752783080170,0.03,172.15,172.14,32.18]
[1752783080864,0.03,172.15,172.11,0.06]
[1752783080865,16.64150762,172.15,172.11,0.06]
[1752783081076,15.94150762,172.12,172.11,0.06]
[1752783081255,15.94150762,172.12,172.11,32.22]
[1752783081455,6.50901228,172.15,172.11,32.22]
[1752783081673,0.03,172.15,172.11,32.91]
[1752783081976,15.94150762,172.14,172.11,32.22]
[1752783082187,15.94150762,172.13,172.11,32.22]
[1752783082358,5.83890222,172.15,172.11,32.22]
[1752783082359,16.61150762,172.12,172.11,32.22]
[1752783082750,15.94150762,172.12,172.11,32.22]
[1752783083256,6.50890222,172.15,172.11,38.03017772]
[1752783083257,15.94150762,172.14,172.11,38.03017772]
[1752783083667,0.03,172.15,172.11,38.72017772]
[1752783083876,0.03,172.15,172.13,15.94150762]
[1752783084060,0.03,172.15,172.14,48.10150762]
[1752783084466,0.03,172.15,172.14,48.79150762]
[1752783084662,0.03,172.15,172.14,32.16]
[1752783084880,0.03,172.15,172.14,48.79150762]
[1752783085072,0.03,172.15,172.14,49.04671701]
[1752783085976,0.03,172.15,172.14,32.16]
[1752783086284,0.03,172.15,172.14,42.54749197]
[1752783086658,0.03,172.15,172.14,43.23749197]
[1752783086855,0.03,172.15,172.13,10.38749197]
[1752783087056,0.03,172.15,172.14,32.16]
[1752783088760,0.7,172.15,172.14,32.16]
[1752783088965,16.58381345,172.15,172.14,32.16]
[1752783089478,0.7,172.15,172.14,32.16]
[1752783089686,0.03,172.15,172.14,32.16]
[1752783089886,0.03,172.15,172.14,37.96922504]
[1752783090092,0.03,172.15,172.14,54.54303849]
[1752783090404,0.03,172.15,172.14,37.96922504]
[1752783091096,0.03,172.15,172.14,53.85303849]
[1752783091263,0.03,172.15,172.14,54.54303849]
[1752783094394,0.03,172.15,172.14,53.85303849]
[1752783094874,0.03,172.15,172.13,5.80954767]
[1752783095068,0.03,172.15,172.14,32.14]
[1752783095476,0.03,172.15,172.14,37.94922504]
[1752783096059,0.03,172.15,172.14,32.14]
[1752783096466,15.91381345,172.15,172.11,0.06]
[1752783096697,16.56381345,172.14,172.12,32.14]
[1752783097079,0.03,172.15,172.12,32.14]
[1752783097383,0.03,172.15,172.12,37.94988354]
[1752783097384,0.71,172.15,172.12,37.94988354]
[1752783098372,0.71,172.15,172.12,32.14]
[1752783098373,16.59381345,172.15,172.12,32.14]
[1752783100471,15.91381345,172.15,172.12,32.14]
[1752783100689,0.68,172.14,172.12,32.14]
[1752783101090,15.91381345,172.15,172.12,37.94982358]
[1752783101983,15.91381345,172.15,172.13,16.55381345]
[1752783101984,0.03,172.15,172.13,16.55381345]
[1752783102188,0.03,172.15,172.14,32.14]
[1752783102582,0.03,172.15,172.14,38.61922504]
[1752783102778,0.03,172.15,172.11,0.64102376]
[1752783102980,0.71,172.15,172.12,32.14]
[1752783103301,0.03,172.15,172.14,15.88381345]
[1752783103509,0.03,172.15,172.14,32.14]
[1752783104211,0.03,172.15,172.14,32.81]
[1752783104397,0.03,172.15,172.14,49.27473595]
[1752783104602,0.03,172.15,172.14,54.50303849]
[1752783106602,0.03,172.15,172.14,39.20014754]
[1752783106899,0.03,172.15,172.14,55.08396099]
[1752783107093,0.03,172.15,172.14,39.20014754]
[1752783107301,0.03,172.15,172.14,48.9184718]
[1752783107478,0.03,172.15,172.14,49.5884718]
[1752783107984,0.03,172.15,172.14,37.94922504]
[1752783108991,0.03,172.15,172.14,32.14]
[1752783109299,0.03,172.15,172.14,37.94922504]
[1752783109605,0.03,172.15,172.14,32.14]
[1752783112193,0.03,172.15,172.14,37.94922504]
[1752783112502,0.03,172.15,172.14,38.61922504]
[1752783113208,0.03,172.15,172.14,49.5884718]
[1752783113704,0.03,172.15,172.14,49.0075493]
[1752783115306,0.03,172.22,172.14,63.53061192]
[1752783115507,0.03,172.22,172.18,10.38832426]
[1752783115711,0.03,172.22,172.19,32.1]
[1752783116088,0.03,172.22,172.19,43.06907807]
[1752783116284,0.03,172.22,172.2,10.38832426]
[1752783116491,0.03,172.22,172.21,32.1]
[1752783117190,0.03,172.22,172.21,37.90686371]
[1752783118100,0.03,172.22,172.21,32.1]
[1752783118915,0.03,172.22,172.21,37.90686371]
[1752783120114,0.03,172.22,172.21,48.96518797]
[1752783120785,0.03,172.22,172.21,37.90686371]
[1752783121187,0.03,172.22,172.21,48.96518797]
[1752783121489,0.03,172.22,172.21,48.94518797]
[1752783121694,0.03,172.22,172.21,37.88686371]
[1752783122015,11.09832426,172.22,172.16,11.05832426]
[1752783122205,10.38832426,172.21,172.17,32.08]
[1752783122715,11.06832426,172.21,172.17,32.08]
[1752783123091,0.03,172.22,172.19,16.19586244]
[1752783123299,0.03,172.22,172.2,32.08]
[1752783124518,0.03,172.22,172.2,42.46832426]
[1752783124893,0.03,172.22,172.2,43.18832426]
[1752783125201,0.03,172.22,172.21,5.80686371]
[1752783125403,0.03,172.22,172.21,16.91518797]
[1752783126011,0.03,172.22,172.21,16.19518797]
[1752783126202,0.03,172.22,172.21,16.91518797]
[1752783128198,0.2,172.28,172.21,32.93294725]
[1752783128396,0.2,172.28,172.27,10.38832426]
[1752783128618,0.2,172.28,172.27,42.44832426]
[1752783128915,0.2,172.28,172.27,43.16832426]
[1752783129300,0.2,172.28,172.27,48.97316549]
[1752783130295,10.38832426,172.33,172.27,53.09694432]
[1752783130496,10.38832426,172.34,172.29,10.38832426]
[1752783130792,10.38832426,172.35,172.3,42.44832426]
[1752783131007,10.38832426,172.36,172.31,0.72]
[1752783131322,10.38832426,172.36,172.32,37.86312351]
[1752783131697,10.38832426,172.34,172.32,32.06]
[1752783132012,10.38832426,172.33,172.32,32.06]
[1752783132319,11.10832426,172.33,172.32,32.06]
[1752783133435,0.72,172.33,172.32,32.06]
[1752783133594,10.38832426,172.35,172.32,32.06]
[1752783133799,11.10832426,172.35,172.32,32.06]
[1752783133992,10.41832426,172.36,172.32,32.06]
[1752783134218,11.13832426,172.36,172.32,32.06]
[1752783134421,11.13832426,172.36,172.32,37.8631089]
[1752783134617,11.10832426,172.35,172.32,32.06]
[1752783134836,0.72,172.34,172.32,32.06]
[1752783135012,10.38832426,172.34,172.32,32.06]
[1752783135218,0.72,172.34,172.32,32.06]
[1752783135412,10.38832426,172.35,172.32,32.06]
[1752783135600,0.72,172.34,172.32,32.06]
[1752783135803,0.72,172.33,172.32,32.06]
[1752783136223,10.38832426,172.35,172.32,32.06]
[1752783136432,10.38832426,172.34,172.32,37.8630991]
[1752783136725,0.03,172.36,172.33,10.38832426]
[1752783136897,0.03,172.36,172.34,32.04]
[1752783137098,0.72,172.35,172.26,0.72]
[1752783137335,0.72,172.35,172.31,10.38832426]
[1752783137513,0.03,172.36,172.32,37.84291747]
[1752783137808,0.03,172.36,172.32,48.95124173]
[1752783138127,0.03,172.36,172.32,38.56291747]
[1752783138418,0.03,172.36,172.32,37.84291747]
[1752783138816,0.75,172.36,172.32,37.84291747]
[1752783139408,11.13832426,172.36,172.32,37.84291747]
[1752783140125,11.10832426,172.35,172.32,32.04]
[1752783140299,0.03,172.36,172.32,48.23127706]
[1752783140503,11.10832426,172.35,172.32,32.04]
[1752783140806,0.03,172.36,172.33,32.02]
[1752783140807,0.72,172.34,172.33,32.02]
[1752783141205,26.72,172.34,172.33,32.02]
[1752783141400,26.0,172.33,172.26,5.80517821]
[1752783141612,26.0,172.33,172.27,42.40832426]
[1752783141613,10.38832426,172.32,172.27,42.40832426]
[1752783141826,10.38832426,172.32,172.27,43.12832426]
[1752783142024,0.72,172.33,172.28,16.19282855]
[1752783142228,6.55186908,172.36,172.29,11.10832426]
[1752783142526,149.05,172.36,172.31,10.38832426]
[1752783142710,159.43832426,172.36,172.31,10.38832426]
[1752783142912,159.43832426,172.36,172.31,0.72]
[1752783143122,148.33,172.36,172.33,10.38832426]
[1752783143328,148.33,172.36,172.34,42.40832426]
[1752783143619,0.03,172.36,172.35,10.38832426]
[1752783143823,0.03,172.36,172.35,11.68853893]
[1752783144019,0.03,172.36,172.35,17.49068572]
[1752783144520,0.03,172.39,172.35,31.9960527]
[1752783144718,0.03,172.39,172.38,10.38832426]
[1752783144932,0.03,172.39,172.38,42.98843796]
[1752783145313,0.03,172.39,172.38,43.70843796]
[1752783146321,0.03,172.39,172.38,49.50957498]
[1752783146710,0.03,172.39,172.38,48.78957498]
[1752783147814,0.03,172.39,172.38,38.40125072]
[1752783148021,0.03,172.39,172.38,48.20946128]
[1752783148532,0.03,172.39,172.38,37.82113702]
[1752783148832,0.03,172.39,172.38,48.20946128]
[1752783149228,0.03,172.39,172.38,32.02]
[1752783149631,0.03,172.39,172.38,37.82113702]
[1752783149818,0.03,172.39,172.38,32.02]
[1752783150138,0.03,172.39,172.38,48.92946128]
[1752783150636,0.03,172.39,172.38,32.02]
[1752783150830,11.13832426,172.39,172.38,32.02]
[1752783151543,0.75,172.39,172.38,32.02]
[1752783151715,0.03,172.39,172.38,32.02]
[1752783151912,0.75,172.39,172.38,32.02]
[1752783152520,0.03,172.39,172.38,32.02]
[1752783153326,0.03,172.39,172.38,48.20946128]
[1752783153537,0.03,172.39,172.38,48.87946128]
[1752783153732,0.03,172.39,172.38,48.20946128]
[1752783154142,0.03,172.39,172.38,37.82113702]
[1752783154439,0.03,172.39,172.38,32.02]
[1752783154630,11.12832426,172.39,172.38,32.02]
[1752783156638,42.92912477,172.39,172.37,31.98]
[1752783156841,11.09832426,172.38,172.37,31.98]
[1752783157140,16.89946128,172.38,172.37,31.98]
[1752783157347,11.09832426,172.38,172.37,31.98]
[1752783157716,16.89946128,172.38,172.37,31.98]
[1752783158740,26.0,172.35,172.29,10.38832426]
[1752783158925,10.38832426,172.33,172.3,32.0]
[1752783159129,11.09832426,172.34,172.3,32.0]
[1752783159331,11.09832426,172.34,172.3,37.80361012]
[1752783159736,0.71,172.34,172.3,37.80361012]
[1752783159933,10.38832426,172.34,172.3,32.0]
[1752783160140,0.71,172.33,172.3,32.0]
[1752783160479,11.09832426,172.33,172.3,32.0]
[1752783160620,10.38832426,172.31,172.29,0.06]
[1752783160820,10.38832426,172.3,172.29,0.06]
[1752783161042,11.09832426,172.3,172.29,32.04]
[1752783161440,16.90215478,172.3,172.29,32.04]
[1752783161941,33.68683875,172.3,172.29,0.06]
[1752783165440,0.71,172.3,172.29,0.06]
[1752783165629,10.38832426,172.3,172.29,0.06]
[1752783166023,16.19215478,172.3,172.29,0.06]
[1752783166224,16.90215478,172.3,172.29,0.06]
[1752783167350,6.51383052,172.3,172.29,0.06]
[1752783167526,16.90215478,172.3,172.29,0.06]
[1752783170428,6.51383052,172.3,172.29,0.06]
[1752783170632,16.90215478,172.3,172.29,0.06]
[1752783170940,33.68683875,172.3,172.29,0.06]
[1752783172126,6.51383052,172.3,172.29,0.06]
[1752783172342,16.90215478,172.3,172.29,0.06]
[1752783175528,10.38832426,172.3,172.29,0.06]
[1752783175956,11.09832426,172.3,172.29,0.06]
[1752783176328,0.71,172.35,172.29,0.06]
[1752783176532,10.38832426,172.3,172.29,0.06]
[1752783176841,36.41832426,172.3,172.29,0.06]
[1752783177058,32.39784336,172.3,172.29,0.06]
[1752783177552,26.03,172.3,172.29,0.06]
[1752783177857,33.10784336,172.3,172.29,0.06]
[1752783178361,26.03,172.3,172.29,0.06]
[1752783180073,36.40702478,172.3,172.29,0.06]
[1752783180853,37.11702478,172.3,172.29,0.06]
[1752783181365,36.40702478,172.3,172.29,0.06]